Body Name,Body,Service Division,Expense Type,Date Paid,Transaction Ref,Invoice Amount,Supplier Name,
South Holland District Council,http://statistics.data.gov.uk/id/local-authority/32UF,Corporate,Payroll - Unison,22/10/2021,30006943,923.75 ,Unison,
South Holland District Council,http://statistics.data.gov.uk/id/local-authority/32UF,Asset and Property,Buildings Maintenance - Programmed,07/10/2021,30006325,"2,900.00 ",D Harrison,
South Holland District Council,http://statistics.data.gov.uk/id/local-authority/32UF,Asset and Property,Buildings Maintenance - Programmed,07/10/2021,30006326,"2,100.00 ",D Harrison,
South Holland District Council,http://statistics.data.gov.uk/id/local-authority/32UF,Asset and Property,Buildings Maintenance - Programmed,14/10/2021,30006653,"4,149.10 ",Tyrrell Contractors Ltd,
South Holland District Council,http://statistics.data.gov.uk/id/local-authority/32UF,Asset and Property,Buildings Maintenance - Programmed,22/10/2021,30006786,"1,120.00 ",Glen Farrow UK Ltd,
South Holland District Council,http://statistics.data.gov.uk/id/local-authority/32UF,Asset and Property,Buildings Maintenance - Programmed,22/10/2021,30006797,"1,453.93 ",Chisletts (Spalding) Ltd,
South Holland District Council,http://statistics.data.gov.uk/id/local-authority/32UF,Asset and Property,Buildings Maintenance - Programmed,19/10/2021,30006799,"2,465.00 ",Mr Clever Clean Peterborough Ltd,
South Holland District Council,http://statistics.data.gov.uk/id/local-authority/32UF,Asset and Property,Buildings Maintenance - Programmed,19/10/2021,30006849,"3,093.10 ",DHF Products Ltd,
South Holland District Council,http://statistics.data.gov.uk/id/local-authority/32UF,Asset and Property,Buildings Maintenance - Programmed,26/10/2021,30007080,451.13 ,Spalding Air Conditioning Services Ltd,
South Holland District Council,http://statistics.data.gov.uk/id/local-authority/32UF,Asset and Property,Buildings Maintenance - Programmed,26/10/2021,30007081,"3,546.00 ",Ian Brown Electrical Engineers Ltd,
South Holland District Council,http://statistics.data.gov.uk/id/local-authority/32UF,Asset and Property,Buildings Maintenance - Programmed,28/10/2021,30007207,"4,550.00 ",Tyrrell Contractors Ltd,
South Holland District Council,http://statistics.data.gov.uk/id/local-authority/32UF,Asset and Property,Buildings Maintenance - Responsive,07/10/2021,30006165,"1,155.00 ",GBSG Ltd,
South Holland District Council,http://statistics.data.gov.uk/id/local-authority/32UF,Asset and Property,Buildings Maintenance - Responsive,05/10/2021,30006307,"1,028.44 ",Spalding Air Conditioning Services Ltd,
South Holland District Council,http://statistics.data.gov.uk/id/local-authority/32UF,Asset and Property,Buildings Maintenance - Responsive,07/10/2021,30006326,"1,000.00 ",D Harrison,
South Holland District Council,http://statistics.data.gov.uk/id/local-authority/32UF,Asset and Property,Buildings Maintenance - Responsive,12/10/2021,30006334,605.00 ,Robert Dunmore,
South Holland District Council,http://statistics.data.gov.uk/id/local-authority/32UF,Asset and Property,Buildings Maintenance - Responsive,14/10/2021,30006478,"4,500.00 ",Glen Farrow UK Ltd,
South Holland District Council,http://statistics.data.gov.uk/id/local-authority/32UF,Asset and Property,Buildings Maintenance - Responsive,28/10/2021,30006743,"7,632.23 ",Orbis Protect  Limited,
South Holland District Council,http://statistics.data.gov.uk/id/local-authority/32UF,Asset and Property,Buildings Maintenance - Responsive,19/10/2021,30006780,520.00 ,D Harrison,
South Holland District Council,http://statistics.data.gov.uk/id/local-authority/32UF,Asset and Property,Buildings Maintenance - Responsive,22/10/2021,30006789,500.93 ,Glen Farrow UK Ltd,
South Holland District Council,http://statistics.data.gov.uk/id/local-authority/32UF,Asset and Property,Buildings Maintenance - Responsive,26/10/2021,30007046,558.87 ,T M Browne Ltd,
South Holland District Council,http://statistics.data.gov.uk/id/local-authority/32UF,Asset and Property,Buildings Maintenance - Responsive,26/10/2021,30007076,880.00 ,Castlebuild Scaffolding Ltd,
South Holland District Council,http://statistics.data.gov.uk/id/local-authority/32UF,Asset and Property,Buildings Maintenance - Responsive,26/10/2021,30007077,"1,477.95 ",Ian Brown Electrical Engineers Ltd,
South Holland District Council,http://statistics.data.gov.uk/id/local-authority/32UF,Asset and Property,Buildings Maintenance - Responsive,04/11/2021,30007078,850.00 ,Adcock Refrig  Air Conditioning Ltd,
South Holland District Council,http://statistics.data.gov.uk/id/local-authority/32UF,Asset and Property,Buildings Maintenance - Responsive,26/10/2021,30007081,374.70 ,Ian Brown Electrical Engineers Ltd,
South Holland District Council,http://statistics.data.gov.uk/id/local-authority/32UF,Asset and Property,Buildings Maintenance - Responsive,02/11/2021,30007298,600.00 ,Drains R Us (Eastern) Ltd,
South Holland District Council,http://statistics.data.gov.uk/id/local-authority/32UF,Asset and Property,Electricity,12/10/2021,30006646,662.97 ,E.ON,
South Holland District Council,http://statistics.data.gov.uk/id/local-authority/32UF,Asset and Property,Electricity,28/10/2021,30007232,"2,800.22 ",Total Energies,
South Holland District Council,http://statistics.data.gov.uk/id/local-authority/32UF,Asset and Property,Electricity,28/10/2021,30007233,"2,975.71 ",Total Energies,
South Holland District Council,http://statistics.data.gov.uk/id/local-authority/32UF,Asset and Property,Premises Insurance,04/11/2021,30006629,"10,000.00 ",Travelers Insurance Co Ltd,
South Holland District Council,http://statistics.data.gov.uk/id/local-authority/32UF,Asset and Property,Professional and Contractors Fees,26/10/2021,30006474,"3,750.00 ",NPS Peterborough Ltd,
South Holland District Council,http://statistics.data.gov.uk/id/local-authority/32UF,Asset and Property,Professional and Contractors Fees,12/10/2021,30006571,"3,000.00 ",Oglesby and Limb Ltd,
South Holland District Council,http://statistics.data.gov.uk/id/local-authority/32UF,Asset and Property,Water and Sewerage Charges,28/10/2021,30007025,665.65 ,Wave,
South Holland District Council,http://statistics.data.gov.uk/id/local-authority/32UF,Building Control,Professional and Contractors Fees,07/10/2021,30006558,725.52 ,Lincolnshire County Council,
South Holland District Council,http://statistics.data.gov.uk/id/local-authority/32UF,Building Control,Professional and Contractors Fees,07/10/2021,30006568,"1,750.24 ",Lincolnshire County Council,
South Holland District Council,http://statistics.data.gov.uk/id/local-authority/32UF,Building Control,Professional and Contractors Fees,28/10/2021,30006770,455.00 ,Barlings KWA Ltd,
South Holland District Council,http://statistics.data.gov.uk/id/local-authority/32UF,Building Control,Professional and Contractors Fees,28/10/2021,30006788,"1,040.00 ",Navitas EAS,
South Holland District Council,http://statistics.data.gov.uk/id/local-authority/32UF,Building Control,Professional and Contractors Fees,28/10/2021,30007255,"2,705.63 ",Lincolnshire County Council,
South Holland District Council,http://statistics.data.gov.uk/id/local-authority/32UF,Capital,Purchase of Buildings,07/10/2021,30006453,"3,500.00 ",Ashley King Development,
South Holland District Council,http://statistics.data.gov.uk/id/local-authority/32UF,Capital,"Purchase of Plant, Machinery and Equipment",14/10/2021,30004313,"32,106.87 ",Acorn MPS Ltd,
South Holland District Council,http://statistics.data.gov.uk/id/local-authority/32UF,Capital,Works to Buildings (Main Contractor),14/10/2021,30004752,"75,285.00 ",Glen Farrow UK Ltd,
South Holland District Council,http://statistics.data.gov.uk/id/local-authority/32UF,Capital,Works to Buildings (Main Contractor),22/10/2021,30006408,"2,177.98 ",Hodgson Sayers Ltd,
South Holland District Council,http://statistics.data.gov.uk/id/local-authority/32UF,Capital,Works to Buildings (Main Contractor),28/10/2021,30006506,"1,336.08 ",Hodgson Sayers Ltd,
South Holland District Council,http://statistics.data.gov.uk/id/local-authority/32UF,Capital,Works to Buildings (Main Contractor),14/10/2021,30006595,"75,446.58 ",Vinshire Gas Services,
South Holland District Council,http://statistics.data.gov.uk/id/local-authority/32UF,Chief Executive,Agency Staff,14/10/2021,30006759,"12,825.00 ",Penna PLC,
South Holland District Council,http://statistics.data.gov.uk/id/local-authority/32UF,Chief Executive,Agency Staff,14/10/2021,30006760,"12,587.50 ",Penna PLC,
South Holland District Council,http://statistics.data.gov.uk/id/local-authority/32UF,Chief Executive,Agency Staff,14/10/2021,30006761,"10,450.00 ",Penna PLC,
South Holland District Council,http://statistics.data.gov.uk/id/local-authority/32UF,Chief Executive,Agency Staff,02/11/2021,30006762,"10,450.00 ",Penna PLC,
South Holland District Council,http://statistics.data.gov.uk/id/local-authority/32UF,Communications,Computer Hardware Purchase,22/10/2021,30006758,617.83 ,Vodafone Ltd Corporate,
South Holland District Council,http://statistics.data.gov.uk/id/local-authority/32UF,Community Development,Computer Hardware Maintenance,28/10/2021,30006802,838.32 ,Spektrix Ltd,
South Holland District Council,http://statistics.data.gov.uk/id/local-authority/32UF,Community Development,Electricity,14/10/2021,30006724,"1,056.93 ",Total Energies,
South Holland District Council,http://statistics.data.gov.uk/id/local-authority/32UF,Community Development,Electricity,28/10/2021,30007247,"1,228.65 ",Total Energies,
South Holland District Council,http://statistics.data.gov.uk/id/local-authority/32UF,Community Development,Furniture and Equipment,14/10/2021,30006435,599.43 ,Direct Access Supplies Ltd,
South Holland District Council,http://statistics.data.gov.uk/id/local-authority/32UF,Community Development,Furniture and Equipment,28/10/2021,30006829,432.06 ,Veolia Es UK Ltd,
South Holland District Council,http://statistics.data.gov.uk/id/local-authority/32UF,Community Development,Other Miscellaneous Expenses,02/11/2021,30007050,"1,125.00 ",The Joker Entertainment,
South Holland District Council,http://statistics.data.gov.uk/id/local-authority/32UF,Community Development,Other Miscellaneous Expenses,02/11/2021,30007302,672.00 ,South Lincs Security Limited,
South Holland District Council,http://statistics.data.gov.uk/id/local-authority/32UF,Community Development,Professional and Contractors Fees,19/10/2021,30006392,"1,233.75 ",James Andrew,
South Holland District Council,http://statistics.data.gov.uk/id/local-authority/32UF,Community Development,Professional and Contractors Fees,19/10/2021,30006393,"1,251.25 ",James Andrew,
South Holland District Council,http://statistics.data.gov.uk/id/local-authority/32UF,Community Development,Professional and Contractors Fees,19/10/2021,30006475,"1,260.00 ",James Andrew,
South Holland District Council,http://statistics.data.gov.uk/id/local-authority/32UF,Community Development,Professional and Contractors Fees,26/10/2021,30007010,420.00 ,GBSG Ltd,
South Holland District Council,http://statistics.data.gov.uk/id/local-authority/32UF,Democratic Services,Legal Fees,14/10/2021,30006615,"4,191.80 ",Lincolnshire County Council,
South Holland District Council,http://statistics.data.gov.uk/id/local-authority/32UF,Democratic Services,Legal Fees Non-Routine,26/10/2021,30007074,750.00 ,No5 Chambers Ltd,
South Holland District Council,http://statistics.data.gov.uk/id/local-authority/32UF,Democratic Services,Other Miscellaneous Expenses,07/10/2021,30006381,600.00 ,Celebrate Surfleet Community Group,
South Holland District Council,http://statistics.data.gov.uk/id/local-authority/32UF,Democratic Services,Other Miscellaneous Expenses,07/10/2021,30006450,600.00 ,Spalding Hockey Club,
South Holland District Council,http://statistics.data.gov.uk/id/local-authority/32UF,Democratic Services,Other Miscellaneous Expenses,14/10/2021,30006705,"1,140.00 ",AM Grab Services,
South Holland District Council,http://statistics.data.gov.uk/id/local-authority/32UF,Democratic Services,Other Miscellaneous Expenses,14/10/2021,30006748,585.00 ,Greg Chapman,
South Holland District Council,http://statistics.data.gov.uk/id/local-authority/32UF,Democratic Services,Postages,11/11/2021,30006821,"8,151.45 ",Civica Election Services,
South Holland District Council,http://statistics.data.gov.uk/id/local-authority/32UF,Democratic Services,Postages,11/11/2021,30006822,"2,654.67 ",Civica Election Services,
South Holland District Council,http://statistics.data.gov.uk/id/local-authority/32UF,Democratic Services,Postages,11/11/2021,30006823,508.76 ,Civica Election Services,
South Holland District Council,http://statistics.data.gov.uk/id/local-authority/32UF,Democratic Services,Postages,28/10/2021,30006924,796.50 ,Civica Election Services,
South Holland District Council,http://statistics.data.gov.uk/id/local-authority/32UF,Democratic Services,Stationery,11/11/2021,30006821,"1,703.13 ",Civica Election Services,
South Holland District Council,http://statistics.data.gov.uk/id/local-authority/32UF,Democratic Services,Stationery,11/11/2021,30006822,667.35 ,Civica Election Services,
South Holland District Council,http://statistics.data.gov.uk/id/local-authority/32UF,Democratic Services,Stationery,11/11/2021,30006823,296.11 ,Civica Election Services,
South Holland District Council,http://statistics.data.gov.uk/id/local-authority/32UF,Democratic Services,Stationery,28/10/2021,30006924,764.71 ,Civica Election Services,
South Holland District Council,http://statistics.data.gov.uk/id/local-authority/32UF,Economic Development,Grants and Contributions to Outside Bodies - No Service Received,05/10/2021,30006330,"4,993.00 ",The Sessions House Events Ltd,
South Holland District Council,http://statistics.data.gov.uk/id/local-authority/32UF,Economic Development,Grants and Contributions to Outside Bodies - No Service Received,05/10/2021,30006433,"2,917.00 ",Trent Plastics (Fabrications) Ltd,
South Holland District Council,http://statistics.data.gov.uk/id/local-authority/32UF,Economic Development,Grants and Contributions to Outside Bodies - No Service Received,05/10/2021,30006437,"3,243.00 ",Humber Inspection International Ltd,
South Holland District Council,http://statistics.data.gov.uk/id/local-authority/32UF,Economic Development,Grants and Contributions to Outside Bodies - No Service Received,07/10/2021,30006542,"1,504.00 ",Tonic Health,
South Holland District Council,http://statistics.data.gov.uk/id/local-authority/32UF,Economic Development,Grants and Contributions to Outside Bodies - No Service Received,07/10/2021,30006563,"1,014.00 ",Driveby Websites Ltd,
South Holland District Council,http://statistics.data.gov.uk/id/local-authority/32UF,Economic Development,Grants and Contributions to Outside Bodies - No Service Received,07/10/2021,30006567,"8,260.00 ",Kalas Packaging Ltd,
South Holland District Council,http://statistics.data.gov.uk/id/local-authority/32UF,Economic Development,Grants and Contributions to Outside Bodies - No Service Received,07/10/2021,30006594,"6,225.03 ",Mrs L A Hallam TA Hallam Travel,
South Holland District Council,http://statistics.data.gov.uk/id/local-authority/32UF,Economic Development,Grants and Contributions to Outside Bodies - No Service Received,12/10/2021,30006596,"23,498.00 ",Sleaford Taxi Company Ltd t/a Sleafordian Coaches,
South Holland District Council,http://statistics.data.gov.uk/id/local-authority/32UF,Economic Development,Grants and Contributions to Outside Bodies - No Service Received,12/10/2021,30006611,"10,200.00 ",Rabtrak Ltd,
South Holland District Council,http://statistics.data.gov.uk/id/local-authority/32UF,Economic Development,Grants and Contributions to Outside Bodies - No Service Received,12/10/2021,30006624,"5,880.00 ",Sam Seal Sports Therapy,
South Holland District Council,http://statistics.data.gov.uk/id/local-authority/32UF,Economic Development,Grants and Contributions to Outside Bodies - No Service Received,14/10/2021,30006715,"2,391.84 ",Chop Chop Kitchenware Limited,
South Holland District Council,http://statistics.data.gov.uk/id/local-authority/32UF,Economic Development,Grants and Contributions to Outside Bodies - No Service Received,14/10/2021,30006765,"6,521.00 ",Moto101 Ltd,
South Holland District Council,http://statistics.data.gov.uk/id/local-authority/32UF,Economic Development,Grants and Contributions to Outside Bodies - No Service Received,14/10/2021,30006766,"2,209.00 ",RG Motor Services Ltd,
South Holland District Council,http://statistics.data.gov.uk/id/local-authority/32UF,Economic Development,Grants and Contributions to Outside Bodies - No Service Received,14/10/2021,30006767,"2,700.00 ",Safecontrol Ltd,
South Holland District Council,http://statistics.data.gov.uk/id/local-authority/32UF,Economic Development,Grants and Contributions to Outside Bodies - No Service Received,22/10/2021,30006881,"2,110.00 ",Daniel Coleman TA Bookkeeping and Accountancy,
South Holland District Council,http://statistics.data.gov.uk/id/local-authority/32UF,Economic Development,Grants and Contributions to Outside Bodies - No Service Received,22/10/2021,30006926,"5,757.50 ",Lily Jayne Florist,
South Holland District Council,http://statistics.data.gov.uk/id/local-authority/32UF,Economic Development,Grants and Contributions to Outside Bodies - No Service Received,22/10/2021,30006928,"3,536.00 ",Cannon Williamson,
South Holland District Council,http://statistics.data.gov.uk/id/local-authority/32UF,Economic Development,Grants and Contributions to Outside Bodies - No Service Received,22/10/2021,30006931,"2,319.76 ",Candour Accounts Ltd,
South Holland District Council,http://statistics.data.gov.uk/id/local-authority/32UF,Economic Development,Grants and Contributions to Outside Bodies - No Service Received,02/11/2021,30006932,"2,163.00 ",Lincs Home Condition Report Ltd,
South Holland District Council,http://statistics.data.gov.uk/id/local-authority/32UF,Economic Development,Grants and Contributions to Outside Bodies - No Service Received,28/10/2021,30006933,"15,000.00 ",Coda Builders Ltd,
South Holland District Council,http://statistics.data.gov.uk/id/local-authority/32UF,Economic Development,Grants and Contributions to Outside Bodies - No Service Received,28/10/2021,30006934,"24,199.00 ",Glen Farrow UK Ltd,
South Holland District Council,http://statistics.data.gov.uk/id/local-authority/32UF,Economic Development,Grants and Contributions to Outside Bodies - No Service Received,22/10/2021,30006949,"8,894.00 ",D A Engineering UK Ltd,
South Holland District Council,http://statistics.data.gov.uk/id/local-authority/32UF,Economic Development,Grants and Contributions to Outside Bodies - No Service Received,28/10/2021,30007151,"1,531.00 ",EPC Services,
South Holland District Council,http://statistics.data.gov.uk/id/local-authority/32UF,Economic Development,Grants and Contributions to Outside Bodies - No Service Received,28/10/2021,30007152,"2,349.00 ",Station Storage Lincs Ltd,
South Holland District Council,http://statistics.data.gov.uk/id/local-authority/32UF,Economic Development,Grants and Contributions to Outside Bodies - No Service Received,02/11/2021,30007272,"5,303.00 ",Battle Hayward and Bower Ltd,
South Holland District Council,http://statistics.data.gov.uk/id/local-authority/32UF,Economic Development,Grants and Contributions to Outside Bodies - No Service Received,02/11/2021,30007284,"5,000.00 ",E W Fisher & Sons,
South Holland District Council,http://statistics.data.gov.uk/id/local-authority/32UF,Economic Development,Grants and Contributions to Outside Bodies - No Service Received,02/11/2021,30007286,"8,110.00 ",The Mower Centre Ltd,
South Holland District Council,http://statistics.data.gov.uk/id/local-authority/32UF,Economic Development,Grants and Contributions to Outside Bodies - No Service Received,02/11/2021,30007287,"1,007.00 ",JWK Electrical Lincs Ltd,
South Holland District Council,http://statistics.data.gov.uk/id/local-authority/32UF,Economic Development,Grants and Contributions to Outside Bodies - No Service Received,02/11/2021,30007293,"4,768.75 ",Axed Ltd,
South Holland District Council,http://statistics.data.gov.uk/id/local-authority/32UF,Economic Development,Professional and Contractors Fees,05/10/2021,30006382,"4,030.00 ",Social Change UK,
South Holland District Council,http://statistics.data.gov.uk/id/local-authority/32UF,Economic Development,Professional and Contractors Fees,12/10/2021,30006686,"2,500.00 ",Hays Specialist Recruitment Limited,
South Holland District Council,http://statistics.data.gov.uk/id/local-authority/32UF,Economic Development,Professional and Contractors Fees,14/10/2021,30006700,"1,450.00 ",Victoria Solutions Ltd ta Victoria Forms,
South Holland District Council,http://statistics.data.gov.uk/id/local-authority/32UF,Economic Development,Professional and Contractors Fees,02/11/2021,30006787,"1,568.75 ",Michael Page Internat Recruitment Ltd,
South Holland District Council,http://statistics.data.gov.uk/id/local-authority/32UF,Economic Development,Professional and Contractors Fees,09/11/2021,30006886,600.00 ,Michael Page Internat Recruitment Ltd,
South Holland District Council,http://statistics.data.gov.uk/id/local-authority/32UF,Economic Development,Professional and Contractors Fees,22/10/2021,30006954,"5,000.00 ",Hays Specialist Recruitment Limited,
South Holland District Council,http://statistics.data.gov.uk/id/local-authority/32UF,Economic Development,Professional and Contractors Fees,11/11/2021,30007102,643.75 ,Michael Page Internat Recruitment Ltd,
South Holland District Council,http://statistics.data.gov.uk/id/local-authority/32UF,Economic Development,Professional and Contractors Fees,26/10/2021,30007116,"3,750.00 ",Kudos Project Management,
South Holland District Council,http://statistics.data.gov.uk/id/local-authority/32UF,Environmental Services,Agency Staff,05/10/2021,30006427,554.26 ,247 Personnel Ltd,
South Holland District Council,http://statistics.data.gov.uk/id/local-authority/32UF,Environmental Services,Agency Staff,07/10/2021,30006469,704.00 ,Steves Garden and Household Services,
South Holland District Council,http://statistics.data.gov.uk/id/local-authority/32UF,Environmental Services,Agency Staff,19/10/2021,30006502,"1,497.02 ",Blue Arrow Ltd,
South Holland District Council,http://statistics.data.gov.uk/id/local-authority/32UF,Environmental Services,Agency Staff,07/10/2021,30006505,"3,681.46 ",Essential Staffing Ltd,
South Holland District Council,http://statistics.data.gov.uk/id/local-authority/32UF,Environmental Services,Agency Staff,07/10/2021,30006514,"3,150.13 ",The Best Connection Group Ltd,
South Holland District Council,http://statistics.data.gov.uk/id/local-authority/32UF,Environmental Services,Agency Staff,28/10/2021,30006524,"3,057.76 ",Encore Personnel Services Ltd,
South Holland District Council,http://statistics.data.gov.uk/id/local-authority/32UF,Environmental Services,Agency Staff,07/10/2021,30006525,"2,737.17 ",The Best Connection Group Ltd,
South Holland District Council,http://statistics.data.gov.uk/id/local-authority/32UF,Environmental Services,Agency Staff,07/10/2021,30006529,"3,298.43 ",The Best Connection Group Ltd,
South Holland District Council,http://statistics.data.gov.uk/id/local-authority/32UF,Environmental Services,Agency Staff,07/10/2021,30006531,643.89 ,247 Personnel Ltd,
South Holland District Council,http://statistics.data.gov.uk/id/local-authority/32UF,Environmental Services,Agency Staff,07/10/2021,30006536,"2,639.60 ",247 Personnel Ltd,
South Holland District Council,http://statistics.data.gov.uk/id/local-authority/32UF,Environmental Services,Agency Staff,07/10/2021,30006541,"3,338.29 ",247 Personnel Ltd,
South Holland District Council,http://statistics.data.gov.uk/id/local-authority/32UF,Environmental Services,Agency Staff,07/10/2021,30006548,"2,910.32 ",The Best Connection Group Ltd,
South Holland District Council,http://statistics.data.gov.uk/id/local-authority/32UF,Environmental Services,Agency Staff,07/10/2021,30006549,"1,034.80 ",247 Personnel Ltd,
South Holland District Council,http://statistics.data.gov.uk/id/local-authority/32UF,Environmental Services,Agency Staff,26/10/2021,30006633,"1,192.50 ",Questech Recruitment Limited,
South Holland District Council,http://statistics.data.gov.uk/id/local-authority/32UF,Environmental Services,Agency Staff,22/10/2021,30006634,"1,232.25 ",Questech Recruitment Limited,
South Holland District Council,http://statistics.data.gov.uk/id/local-authority/32UF,Environmental Services,Agency Staff,14/10/2021,30006647,"6,604.30 ",NJW Services,
South Holland District Council,http://statistics.data.gov.uk/id/local-authority/32UF,Environmental Services,Agency Staff,14/10/2021,30006703,745.75 ,247 Personnel Ltd,
South Holland District Council,http://statistics.data.gov.uk/id/local-authority/32UF,Environmental Services,Agency Staff,14/10/2021,30006704,586.74 ,247 Personnel Ltd,
South Holland District Council,http://statistics.data.gov.uk/id/local-authority/32UF,Environmental Services,Agency Staff,19/10/2021,30006708,"3,715.79 ",247 Personnel Ltd,
South Holland District Council,http://statistics.data.gov.uk/id/local-authority/32UF,Environmental Services,Agency Staff,02/11/2021,30006709,"3,896.22 ",The Best Connection Group Ltd,
South Holland District Council,http://statistics.data.gov.uk/id/local-authority/32UF,Environmental Services,Agency Staff,14/10/2021,30006768,982.72 ,Capital Outsourcing Group Food,
South Holland District Council,http://statistics.data.gov.uk/id/local-authority/32UF,Environmental Services,Agency Staff,19/10/2021,30006772,628.00 ,Steves Garden and Household Services,
South Holland District Council,http://statistics.data.gov.uk/id/local-authority/32UF,Environmental Services,Agency Staff,19/10/2021,30006806,"3,821.02 ",247 Personnel Ltd,
South Holland District Council,http://statistics.data.gov.uk/id/local-authority/32UF,Environmental Services,Agency Staff,02/11/2021,30006852,967.25 ,Questech Recruitment Limited,
South Holland District Council,http://statistics.data.gov.uk/id/local-authority/32UF,Environmental Services,Agency Staff,19/10/2021,30006856,621.03 ,247 Personnel Ltd,
South Holland District Council,http://statistics.data.gov.uk/id/local-authority/32UF,Environmental Services,Agency Staff,19/10/2021,30006857,736.30 ,247 Personnel Ltd,
South Holland District Council,http://statistics.data.gov.uk/id/local-authority/32UF,Environmental Services,Agency Staff,19/10/2021,30006862,"2,391.79 ",Essential Staffing Ltd,
South Holland District Council,http://statistics.data.gov.uk/id/local-authority/32UF,Environmental Services,Agency Staff,28/10/2021,30006863,982.72 ,Capital Outsourcing Group Food,
South Holland District Council,http://statistics.data.gov.uk/id/local-authority/32UF,Environmental Services,Agency Staff,19/10/2021,30006864,"1,390.78 ",Integrity Plus Ltd,
South Holland District Council,http://statistics.data.gov.uk/id/local-authority/32UF,Environmental Services,Agency Staff,19/10/2021,30006873,"3,132.54 ",Integrity Plus Ltd,
South Holland District Council,http://statistics.data.gov.uk/id/local-authority/32UF,Environmental Services,Agency Staff,26/10/2021,30006875,"1,476.45 ",Blue Arrow Ltd,
South Holland District Council,http://statistics.data.gov.uk/id/local-authority/32UF,Environmental Services,Agency Staff,22/10/2021,30006880,"3,053.59 ",Essential Staffing Ltd,
South Holland District Council,http://statistics.data.gov.uk/id/local-authority/32UF,Environmental Services,Agency Staff,22/10/2021,30006923,592.00 ,Steves Garden and Household Services,
South Holland District Council,http://statistics.data.gov.uk/id/local-authority/32UF,Environmental Services,Agency Staff,22/10/2021,30006925,"1,586.81 ",The Best Connection Group Ltd,
South Holland District Council,http://statistics.data.gov.uk/id/local-authority/32UF,Environmental Services,Agency Staff,26/10/2021,30007034,982.72 ,Capital Outsourcing Group Food,
South Holland District Council,http://statistics.data.gov.uk/id/local-authority/32UF,Environmental Services,Agency Staff,04/11/2021,30007045,"2,552.60 ",Encore Personnel Services Ltd,
South Holland District Council,http://statistics.data.gov.uk/id/local-authority/32UF,Environmental Services,Agency Staff,02/11/2021,30007071,"1,603.95 ",Blue Arrow Ltd,
South Holland District Council,http://statistics.data.gov.uk/id/local-authority/32UF,Environmental Services,Agency Staff,09/11/2021,30007072,"1,603.95 ",Blue Arrow Ltd,
South Holland District Council,http://statistics.data.gov.uk/id/local-authority/32UF,Environmental Services,Agency Staff,26/10/2021,30007108,"3,508.24 ",Integrity Plus Ltd,
South Holland District Council,http://statistics.data.gov.uk/id/local-authority/32UF,Environmental Services,Agency Staff,28/10/2021,30007117,700.00 ,Steves Garden and Household Services,
South Holland District Council,http://statistics.data.gov.uk/id/local-authority/32UF,Environmental Services,Agency Staff,26/10/2021,30007118,"3,460.94 ",Integrity Plus Ltd,
South Holland District Council,http://statistics.data.gov.uk/id/local-authority/32UF,Environmental Services,Agency Staff,28/10/2021,30007259,"1,927.82 ",Integrity Plus Ltd,
South Holland District Council,http://statistics.data.gov.uk/id/local-authority/32UF,Environmental Services,Agency Staff,28/10/2021,30007261,"3,027.62 ",The Best Connection Group Ltd,
South Holland District Council,http://statistics.data.gov.uk/id/local-authority/32UF,Environmental Services,Agency Staff,28/10/2021,30007262,"2,765.31 ",The Best Connection Group Ltd,
South Holland District Council,http://statistics.data.gov.uk/id/local-authority/32UF,Environmental Services,Agency Staff,28/10/2021,30007263,"3,213.16 ",Integrity Plus Ltd,
South Holland District Council,http://statistics.data.gov.uk/id/local-authority/32UF,Environmental Services,Agency Staff,28/10/2021,30007264,826.20 ,Integrity Plus Ltd,
South Holland District Council,http://statistics.data.gov.uk/id/local-authority/32UF,Environmental Services,Agency Staff,28/10/2021,30007266,"1,473.40 ",Integrity Plus Ltd,
South Holland District Council,http://statistics.data.gov.uk/id/local-authority/32UF,Environmental Services,Agency Staff,02/11/2021,30007299,"2,201.69 ",247 Personnel Ltd,
South Holland District Council,http://statistics.data.gov.uk/id/local-authority/32UF,Environmental Services,Agency Staff,02/11/2021,30007300,781.08 ,247 Personnel Ltd,
South Holland District Council,http://statistics.data.gov.uk/id/local-authority/32UF,Environmental Services,Cleaning Contract,12/10/2021,30006574,"1,608.91 ",Hortech Cleaning Equipment,
South Holland District Council,http://statistics.data.gov.uk/id/local-authority/32UF,Environmental Services,Commercial Vehicle Lease Payments (Less than 12 months),28/10/2021,30006663,"1,733.80 ",Go Plant Fleet Services,
South Holland District Council,http://statistics.data.gov.uk/id/local-authority/32UF,Environmental Services,Fuel and Oil,28/10/2021,30006504,459.00 ,Chemodex Limited,
South Holland District Council,http://statistics.data.gov.uk/id/local-authority/32UF,Environmental Services,Fuel and Oil,12/10/2021,30006513,"7,959.16 ",C H Jones Ltd,
South Holland District Council,http://statistics.data.gov.uk/id/local-authority/32UF,Environmental Services,Fuel and Oil,19/10/2021,30006800,"6,904.76 ",C H Jones Ltd,
South Holland District Council,http://statistics.data.gov.uk/id/local-authority/32UF,Environmental Services,Fuel and Oil,22/10/2021,30006952,"7,363.74 ",C H Jones Ltd,
South Holland District Council,http://statistics.data.gov.uk/id/local-authority/32UF,Environmental Services,Furniture and Equipment,28/10/2021,30006500,575.00 ,Vision Techniques U K Ltd,
South Holland District Council,http://statistics.data.gov.uk/id/local-authority/32UF,Environmental Services,Furniture and Equipment,22/10/2021,30006552,557.58 ,Russells Kirbymoorside Ltd,
South Holland District Council,http://statistics.data.gov.uk/id/local-authority/32UF,Environmental Services,Furniture and Equipment,28/10/2021,30006553,"12,382.00 ",Bartec Municipal Technologies Ltd,
South Holland District Council,http://statistics.data.gov.uk/id/local-authority/32UF,Environmental Services,Furniture and Equipment,26/10/2021,30007068,836.49 ,Chisletts (Spalding) Ltd,
South Holland District Council,http://statistics.data.gov.uk/id/local-authority/32UF,Environmental Services,Furniture and Equipment,26/10/2021,30007069,"1,121.25 ",Chisletts (Spalding) Ltd,
South Holland District Council,http://statistics.data.gov.uk/id/local-authority/32UF,Environmental Services,Furniture and Equipment,26/10/2021,30007070,706.71 ,Chisletts (Spalding) Ltd,
South Holland District Council,http://statistics.data.gov.uk/id/local-authority/32UF,Environmental Services,Income Collected on Behalf of External Organisations,12/10/2021,30006585,"6,770.80 ",Broadgate Builders T/A Westlode Car Park,
South Holland District Council,http://statistics.data.gov.uk/id/local-authority/32UF,Environmental Services,Materials and Consumables,22/10/2021,30006418,"2,538.57 ",Berry BPI Refuse,
South Holland District Council,http://statistics.data.gov.uk/id/local-authority/32UF,Environmental Services,Materials and Consumables,26/10/2021,30006565,"7,258.68 ",Berry BPI Refuse,
South Holland District Council,http://statistics.data.gov.uk/id/local-authority/32UF,Environmental Services,Materials and Consumables,19/10/2021,30006775,730.00 ,Glenside Nurseries Ltd,
South Holland District Council,http://statistics.data.gov.uk/id/local-authority/32UF,Environmental Services,Materials and Consumables,04/11/2021,30006889,"3,732.00 ",Danline International Ltd,
South Holland District Council,http://statistics.data.gov.uk/id/local-authority/32UF,Environmental Services,Materials and Consumables,11/11/2021,30007043,"5,620.38 ",Berry BPI Refuse,
South Holland District Council,http://statistics.data.gov.uk/id/local-authority/32UF,Environmental Services,Professional and Contractors Fees,28/10/2021,30006337,850.00 ,Weaar,
South Holland District Council,http://statistics.data.gov.uk/id/local-authority/32UF,Environmental Services,Professional and Contractors Fees,07/10/2021,30006462,"1,265.28 ",Lincolnshire County Council,
South Holland District Council,http://statistics.data.gov.uk/id/local-authority/32UF,Environmental Services,Professional and Contractors Fees,07/10/2021,30006463,"1,049.32 ",Lincolnshire County Council,
South Holland District Council,http://statistics.data.gov.uk/id/local-authority/32UF,Environmental Services,Professional and Contractors Fees,28/10/2021,30006642,450.00 ,Weaar,
South Holland District Council,http://statistics.data.gov.uk/id/local-authority/32UF,Environmental Services,Professional and Contractors Fees,28/10/2021,30006643,850.00 ,Weaar,
South Holland District Council,http://statistics.data.gov.uk/id/local-authority/32UF,Environmental Services,Professional and Contractors Fees,28/10/2021,30006644,950.00 ,Weaar,
South Holland District Council,http://statistics.data.gov.uk/id/local-authority/32UF,Environmental Services,Professional and Contractors Fees,28/10/2021,30006645,950.00 ,Weaar,
South Holland District Council,http://statistics.data.gov.uk/id/local-authority/32UF,Environmental Services,Professional and Contractors Fees,28/10/2021,30006648,475.00 ,Weaar,
South Holland District Council,http://statistics.data.gov.uk/id/local-authority/32UF,Environmental Services,Professional and Contractors Fees,28/10/2021,30006649,"1,500.00 ",Weaar,
South Holland District Council,http://statistics.data.gov.uk/id/local-authority/32UF,Environmental Services,Professional and Contractors Fees,28/10/2021,30006650,850.00 ,Weaar,
South Holland District Council,http://statistics.data.gov.uk/id/local-authority/32UF,Environmental Services,Professional and Contractors Fees,28/10/2021,30006701,856.51 ,Kings Armoured Security Services Ltd,
South Holland District Council,http://statistics.data.gov.uk/id/local-authority/32UF,Environmental Services,Professional and Contractors Fees,04/11/2021,30006779,"1,450.00 ",Weaar,
South Holland District Council,http://statistics.data.gov.uk/id/local-authority/32UF,Environmental Services,Transport Insurance Excess,05/10/2021,30006266,549.19 ,Kents of Spalding Ltd,
South Holland District Council,http://statistics.data.gov.uk/id/local-authority/32UF,Environmental Services,Transport Insurance Excess,02/11/2021,30006922,580.00 ,L A PAINTWORKS,
South Holland District Council,http://statistics.data.gov.uk/id/local-authority/32UF,Environmental Services,Tyres,02/11/2021,30007301,"5,144.00 ",Vaculug Technologies Ltd,
South Holland District Council,http://statistics.data.gov.uk/id/local-authority/32UF,Environmental Services,Workshop Consumables,28/10/2021,30007256,630.00 ,Pre Sure Limited,
South Holland District Council,http://statistics.data.gov.uk/id/local-authority/32UF,Environmental Services,Workshop Parts,22/10/2021,30006512,"1,590.33 ",Fleet Factors Ltd,
South Holland District Council,http://statistics.data.gov.uk/id/local-authority/32UF,Environmental Services,Workshop Parts,28/10/2021,30006855,"1,572.67 ",Fleet Factors Ltd,
South Holland District Council,http://statistics.data.gov.uk/id/local-authority/32UF,Environmental Services,Workshop Parts,22/10/2021,30006879,"1,642.80 ",Fleet Factors Ltd,
South Holland District Council,http://statistics.data.gov.uk/id/local-authority/32UF,Environmental Services,Workshop Parts,04/11/2021,30006882,"1,064.40 ",Fleet Factors Ltd,
South Holland District Council,http://statistics.data.gov.uk/id/local-authority/32UF,Environmental Services,Workshop Parts,28/10/2021,30007254,505.00 ,Fleet Factors Ltd,
South Holland District Council,http://statistics.data.gov.uk/id/local-authority/32UF,Finance,Public Sector Partnership Services,22/10/2021,30006969,"257,205.75 ",Public Sector Partnership Services Ltd,
South Holland District Council,http://statistics.data.gov.uk/id/local-authority/32UF,Housing,Agency Staff,07/10/2021,30006403,"1,000.00 ",G2 Recruitment Solutions,
South Holland District Council,http://statistics.data.gov.uk/id/local-authority/32UF,Housing,Agency Staff,07/10/2021,30006404,"1,000.00 ",G2 Recruitment Solutions,
South Holland District Council,http://statistics.data.gov.uk/id/local-authority/32UF,Housing,Agency Staff,07/10/2021,30006405,"1,000.00 ",G2 Recruitment Solutions,
South Holland District Council,http://statistics.data.gov.uk/id/local-authority/32UF,Housing,Agency Staff,07/10/2021,30006491,"1,000.00 ",G2 Recruitment Solutions,
South Holland District Council,http://statistics.data.gov.uk/id/local-authority/32UF,Housing,Agency Staff,07/10/2021,30006492,"1,000.00 ",G2 Recruitment Solutions,
South Holland District Council,http://statistics.data.gov.uk/id/local-authority/32UF,Housing,Agency Staff,07/10/2021,30006493,"1,000.00 ",G2 Recruitment Solutions,
South Holland District Council,http://statistics.data.gov.uk/id/local-authority/32UF,Housing,Agency Staff,07/10/2021,30006497,956.25 ,G2 Recruitment Solutions,
South Holland District Council,http://statistics.data.gov.uk/id/local-authority/32UF,Housing,Agency Staff,22/10/2021,30006910,"1,000.00 ",G2 Recruitment Solutions,
South Holland District Council,http://statistics.data.gov.uk/id/local-authority/32UF,Housing,Agency Staff,22/10/2021,30006911,"1,000.00 ",G2 Recruitment Solutions,
South Holland District Council,http://statistics.data.gov.uk/id/local-authority/32UF,Housing,Agency Staff,22/10/2021,30006912,"1,000.00 ",G2 Recruitment Solutions,
South Holland District Council,http://statistics.data.gov.uk/id/local-authority/32UF,Housing,Bed and Breakfast Accommodation (Homelessness Service),12/10/2021,30006551,562.50 ,Anglia Motel,
South Holland District Council,http://statistics.data.gov.uk/id/local-authority/32UF,Housing,Bed and Breakfast Accommodation (Homelessness Service),12/10/2021,30006587,560.00 ,Anglia Motel,
South Holland District Council,http://statistics.data.gov.uk/id/local-authority/32UF,Housing,Bed and Breakfast Accommodation (Homelessness Service),12/10/2021,30006588,560.00 ,Anglia Motel,
South Holland District Council,http://statistics.data.gov.uk/id/local-authority/32UF,Housing,Bed and Breakfast Accommodation (Homelessness Service),12/10/2021,30006589,"1,000.00 ",Anglia Motel,
South Holland District Council,http://statistics.data.gov.uk/id/local-authority/32UF,Housing,Bed and Breakfast Accommodation (Homelessness Service),12/10/2021,30006590,560.00 ,Anglia Motel,
South Holland District Council,http://statistics.data.gov.uk/id/local-authority/32UF,Housing,Bed and Breakfast Accommodation (Homelessness Service),12/10/2021,30006601,562.50 ,Anglia Motel,
South Holland District Council,http://statistics.data.gov.uk/id/local-authority/32UF,Housing,Bed and Breakfast Accommodation (Homelessness Service),12/10/2021,30006603,"1,000.00 ",Anglia Motel,
South Holland District Council,http://statistics.data.gov.uk/id/local-authority/32UF,Housing,Bed and Breakfast Accommodation (Homelessness Service),12/10/2021,30006605,937.50 ,Anglia Motel,
South Holland District Council,http://statistics.data.gov.uk/id/local-authority/32UF,Housing,Bed and Breakfast Accommodation (Homelessness Service),12/10/2021,30006606,595.00 ,Anglia Motel,
South Holland District Council,http://statistics.data.gov.uk/id/local-authority/32UF,Housing,Bed and Breakfast Accommodation (Homelessness Service),12/10/2021,30006607,560.00 ,Anglia Motel,
South Holland District Council,http://statistics.data.gov.uk/id/local-authority/32UF,Housing,Bed and Breakfast Accommodation (Homelessness Service),12/10/2021,30006608,560.00 ,Anglia Motel,
South Holland District Council,http://statistics.data.gov.uk/id/local-authority/32UF,Housing,Bed and Breakfast Accommodation (Homelessness Service),26/10/2021,30007056,490.00 ,Anglia Motel,
South Holland District Council,http://statistics.data.gov.uk/id/local-authority/32UF,Housing,Bed and Breakfast Accommodation (Homelessness Service),26/10/2021,30007058,875.00 ,Anglia Motel,
South Holland District Council,http://statistics.data.gov.uk/id/local-authority/32UF,Housing,Bed and Breakfast Accommodation (Homelessness Service),26/10/2021,30007059,875.00 ,Anglia Motel,
South Holland District Council,http://statistics.data.gov.uk/id/local-authority/32UF,Housing,Bed and Breakfast Accommodation (Homelessness Service),26/10/2021,30007062,490.00 ,Anglia Motel,
South Holland District Council,http://statistics.data.gov.uk/id/local-authority/32UF,Housing,Bed and Breakfast Accommodation (Homelessness Service),26/10/2021,30007063,490.00 ,Anglia Motel,
South Holland District Council,http://statistics.data.gov.uk/id/local-authority/32UF,Housing,Bed and Breakfast Accommodation (Homelessness Service),26/10/2021,30007064,490.00 ,Anglia Motel,
South Holland District Council,http://statistics.data.gov.uk/id/local-authority/32UF,Housing,Bed and Breakfast Accommodation (Homelessness Service),26/10/2021,30007065,875.00 ,Anglia Motel,
South Holland District Council,http://statistics.data.gov.uk/id/local-authority/32UF,Housing,Bed and Breakfast Accommodation (Homelessness Service),26/10/2021,30007066,490.00 ,Anglia Motel,
South Holland District Council,http://statistics.data.gov.uk/id/local-authority/32UF,Housing,Grants and Contributions to Outside Bodies - No Service Received,07/10/2021,30006336,"1,078.76 ",JPG Builders,
South Holland District Council,http://statistics.data.gov.uk/id/local-authority/32UF,Housing,Grants and Contributions to Outside Bodies - No Service Received,07/10/2021,30006510,"4,094.40 ",Closomat Ltd,
South Holland District Council,http://statistics.data.gov.uk/id/local-authority/32UF,Housing,Grants and Contributions to Outside Bodies - No Service Received,12/10/2021,30006579,"14,636.50 ",R G Carter Lincoln Limited,
South Holland District Council,http://statistics.data.gov.uk/id/local-authority/32UF,Housing,Grants and Contributions to Outside Bodies - No Service Received,19/10/2021,30006580,"1,091.00 ",Stuart Taplin Plumbing and Build Maint,
South Holland District Council,http://statistics.data.gov.uk/id/local-authority/32UF,Housing,Grants and Contributions to Outside Bodies - No Service Received,12/10/2021,30006582,"5,781.82 ",Brothertoft Build Ltd,
South Holland District Council,http://statistics.data.gov.uk/id/local-authority/32UF,Housing,Grants and Contributions to Outside Bodies - No Service Received,19/10/2021,30006583,"2,157.00 ",Dolphin Mobility East Midlands Ltd,
South Holland District Council,http://statistics.data.gov.uk/id/local-authority/32UF,Housing,Grants and Contributions to Outside Bodies - No Service Received,12/10/2021,30006635,"11,495.00 ",Citizens Advice South Lincolnshire,
South Holland District Council,http://statistics.data.gov.uk/id/local-authority/32UF,Housing,Grants and Contributions to Outside Bodies - No Service Received,12/10/2021,30006638,"3,000.00 ",Nationwide Cleaning Services,
South Holland District Council,http://statistics.data.gov.uk/id/local-authority/32UF,Housing,Grants and Contributions to Outside Bodies - No Service Received,22/10/2021,30006660,"4,275.00 ",Obam Domestic Lift Services Ltd,
South Holland District Council,http://statistics.data.gov.uk/id/local-authority/32UF,Housing,Grants and Contributions to Outside Bodies - No Service Received,19/10/2021,30006675,"93,881.09 ",Princebuild Ltd,
South Holland District Council,http://statistics.data.gov.uk/id/local-authority/32UF,Housing,Grants and Contributions to Outside Bodies - No Service Received,12/10/2021,30006680,"1,444.00 ",Language Line Ltd,
South Holland District Council,http://statistics.data.gov.uk/id/local-authority/32UF,Housing,Grants and Contributions to Outside Bodies - No Service Received,19/10/2021,30006707,550.00 ,PERSONAL INFORMATION REDACTED,
South Holland District Council,http://statistics.data.gov.uk/id/local-authority/32UF,Housing,Grants and Contributions to Outside Bodies - No Service Received,26/10/2021,30006754,"1,621.97 ",YES Energy Solutions,
South Holland District Council,http://statistics.data.gov.uk/id/local-authority/32UF,Housing,Grants and Contributions to Outside Bodies - No Service Received,28/10/2021,30006858,"5,081.00 ",Obam Domestic Lift Services Ltd,
South Holland District Council,http://statistics.data.gov.uk/id/local-authority/32UF,Housing,Grants and Contributions to Outside Bodies - No Service Received,26/10/2021,30006936,"7,144.40 ",TKS of Holbeach,
South Holland District Council,http://statistics.data.gov.uk/id/local-authority/32UF,Housing,Grants and Contributions to Outside Bodies - No Service Received,26/10/2021,30006937,"6,955.98 ",R A Joinery,
South Holland District Council,http://statistics.data.gov.uk/id/local-authority/32UF,Housing,Grants and Contributions to Outside Bodies - No Service Received,02/11/2021,30007273,"3,724.00 ",Closomat Ltd,
South Holland District Council,http://statistics.data.gov.uk/id/local-authority/32UF,Housing,Grants and Contributions to Outside Bodies - No Service Received,02/11/2021,30007280,"9,477.34 ",M P L Home Improvements,
South Holland District Council,http://statistics.data.gov.uk/id/local-authority/32UF,Housing,Grants and Contributions to Outside Bodies - No Service Received,02/11/2021,30007282,"12,000.00 ",JPG Builders,
South Holland District Council,http://statistics.data.gov.uk/id/local-authority/32UF,Housing,Professional Fees,26/10/2021,30007106,645.83 ,Camsure Homes Ltd,
South Holland District Council,http://statistics.data.gov.uk/id/local-authority/32UF,Housing,Professional Fees,11/11/2021,30007305,"1,797.50 ",Platform Housing Ltd,
South Holland District Council,http://statistics.data.gov.uk/id/local-authority/32UF,Housing,Purchase of Buildings,02/11/2021,30007306,"1,500.00 ",Ashley King Development,
South Holland District Council,http://statistics.data.gov.uk/id/local-authority/32UF,Housing,Purchase of Buildings,02/11/2021,30007308,"1,000.00 ",Ashley King Development,
South Holland District Council,http://statistics.data.gov.uk/id/local-authority/32UF,Housing,Purchase of Buildings,02/11/2021,30007309,"1,500.00 ",Ashley King Development,
South Holland District Council,http://statistics.data.gov.uk/id/local-authority/32UF,Housing,Works to Buildings (Main Contractor),12/10/2021,30006668,"7,034.29 ",R A Joinery,
South Holland District Council,http://statistics.data.gov.uk/id/local-authority/32UF,Housing Landlord Manager,Agency Staff,19/10/2021,30006811,844.80 ,Niyaa People,
South Holland District Council,http://statistics.data.gov.uk/id/local-authority/32UF,Housing Landlord Manager,Agency Staff,19/10/2021,30006812,844.80 ,Niyaa People,
South Holland District Council,http://statistics.data.gov.uk/id/local-authority/32UF,Housing Landlord Manager,Agency Staff,19/10/2021,30006813,844.80 ,Niyaa People,
South Holland District Council,http://statistics.data.gov.uk/id/local-authority/32UF,Housing Landlord Manager,Agency Staff,19/10/2021,30006814,872.26 ,Niyaa People,
South Holland District Council,http://statistics.data.gov.uk/id/local-authority/32UF,Housing Landlord Manager,Agency Staff,19/10/2021,30006815,823.68 ,Niyaa People,
South Holland District Council,http://statistics.data.gov.uk/id/local-authority/32UF,Housing Landlord Manager,Agency Staff,19/10/2021,30006816,496.32 ,Niyaa People,
South Holland District Council,http://statistics.data.gov.uk/id/local-authority/32UF,Housing Landlord Manager,Agency Staff,19/10/2021,30006817,844.80 ,Niyaa People,
South Holland District Council,http://statistics.data.gov.uk/id/local-authority/32UF,Housing Landlord Manager,Asbestos Works HRA,28/10/2021,30007013,"3,100.00 ",Rilmac Insulation Ltd,
South Holland District Council,http://statistics.data.gov.uk/id/local-authority/32UF,Housing Landlord Manager,Banking Charges,26/10/2021,30001306,577.89 ,AllPay Limited,
South Holland District Council,http://statistics.data.gov.uk/id/local-authority/32UF,Housing Landlord Manager,Buildings Maintenance - Responsive,07/10/2021,30006370,"3,726.00 ",M and R Glass and Glazing Ltd,
South Holland District Council,http://statistics.data.gov.uk/id/local-authority/32UF,Housing Landlord Manager,Buildings Maintenance - Responsive,14/10/2021,30006373,"4,800.00 ",Boors Ltd,
South Holland District Council,http://statistics.data.gov.uk/id/local-authority/32UF,Housing Landlord Manager,Buildings Maintenance - Responsive,07/10/2021,30006379,700.00 ,Greenscape Tree Safe Ltd,
South Holland District Council,http://statistics.data.gov.uk/id/local-authority/32UF,Housing Landlord Manager,Buildings Maintenance - Responsive,22/10/2021,30006448,973.38 ,H20 Nationwide Limited,
South Holland District Council,http://statistics.data.gov.uk/id/local-authority/32UF,Housing Landlord Manager,Buildings Maintenance - Responsive,14/10/2021,30006737,"2,357.00 ",M and R Glass and Glazing Ltd,
South Holland District Council,http://statistics.data.gov.uk/id/local-authority/32UF,Housing Landlord Manager,Buildings Maintenance - Responsive,14/10/2021,30006738,"5,070.00 ",M and R Glass and Glazing Ltd,
South Holland District Council,http://statistics.data.gov.uk/id/local-authority/32UF,Housing Landlord Manager,Cesspool Emptying,04/11/2021,30007079,"1,375.00 ",Dalrod Drainage Solutions,
South Holland District Council,http://statistics.data.gov.uk/id/local-authority/32UF,Housing Landlord Manager,Cleaning Contract,28/10/2021,30006964,565.05 ,Veolia Es UK Ltd,
South Holland District Council,http://statistics.data.gov.uk/id/local-authority/32UF,Housing Landlord Manager,Computer Software Licence Costs,22/10/2021,30006400,"2,175.53 ",Automico Ltd,
South Holland District Council,http://statistics.data.gov.uk/id/local-authority/32UF,Housing Landlord Manager,Electricity,28/10/2021,30007199,453.73 ,Total Energies,
South Holland District Council,http://statistics.data.gov.uk/id/local-authority/32UF,Housing Landlord Manager,External Painting Repairs,22/10/2021,30006376,"8,429.11 ",Mitie Property Services UK Ltd,
South Holland District Council,http://statistics.data.gov.uk/id/local-authority/32UF,Housing Landlord Manager,Fuel and Oil,12/10/2021,30006513,788.83 ,C H Jones Ltd,
South Holland District Council,http://statistics.data.gov.uk/id/local-authority/32UF,Housing Landlord Manager,Fuel and Oil,19/10/2021,30006800,891.77 ,C H Jones Ltd,
South Holland District Council,http://statistics.data.gov.uk/id/local-authority/32UF,Housing Landlord Manager,Fuel and Oil,22/10/2021,30006952,637.89 ,C H Jones Ltd,
South Holland District Council,http://statistics.data.gov.uk/id/local-authority/32UF,Housing Landlord Manager,Furniture and Equipment,26/10/2021,30006498,"13,081.11 ",Tunstall Healthcare UK Ltd,
South Holland District Council,http://statistics.data.gov.uk/id/local-authority/32UF,Housing Landlord Manager,Furniture and Equipment,19/10/2021,30006657,992.25 ,Stannah,
South Holland District Council,http://statistics.data.gov.uk/id/local-authority/32UF,Housing Landlord Manager,Furniture and Equipment,19/10/2021,30006658,869.94 ,Stannah,
South Holland District Council,http://statistics.data.gov.uk/id/local-authority/32UF,Housing Landlord Manager,Furniture and Equipment,04/11/2021,30006783,912.80 ,Aaron Services Ltd,
South Holland District Council,http://statistics.data.gov.uk/id/local-authority/32UF,Housing Landlord Manager,Furniture and Equipment,28/10/2021,30006832,457.49 ,Veolia Es UK Ltd,
South Holland District Council,http://statistics.data.gov.uk/id/local-authority/32UF,Housing Landlord Manager,Furniture and Equipment,22/10/2021,30006891,"1,900.00 ",Washco,
South Holland District Council,http://statistics.data.gov.uk/id/local-authority/32UF,Housing Landlord Manager,Gas Repairs,04/11/2021,30006776,"2,466.05 ",Aaron Services Ltd,
South Holland District Council,http://statistics.data.gov.uk/id/local-authority/32UF,Housing Landlord Manager,Gas Repairs,04/11/2021,30006781,"9,248.55 ",Aaron Services Ltd,
South Holland District Council,http://statistics.data.gov.uk/id/local-authority/32UF,Housing Landlord Manager,Gas Repairs,04/11/2021,30006784,"1,653.93 ",Aaron Services Ltd,
South Holland District Council,http://statistics.data.gov.uk/id/local-authority/32UF,Housing Landlord Manager,Gas Servicing,04/11/2021,30006777,"25,321.94 ",Aaron Services Ltd,
South Holland District Council,http://statistics.data.gov.uk/id/local-authority/32UF,Housing Landlord Manager,Grounds Maintenance Contract (External),26/10/2021,30007044,"1,650.00 ",Greenscape Tree Safe Ltd,
South Holland District Council,http://statistics.data.gov.uk/id/local-authority/32UF,Housing Landlord Manager,Grounds Maintenance Contract (External),02/11/2021,30007285,723.00 ,S Barker Turf Suppliers and Fencing,
South Holland District Council,http://statistics.data.gov.uk/id/local-authority/32UF,Housing Landlord Manager,Maintenance of Footpaths and Roadways,22/10/2021,30006688,688.40 ,C G Godfrey Ltd,
South Holland District Council,http://statistics.data.gov.uk/id/local-authority/32UF,Housing Landlord Manager,Maintenance of Footpaths and Roadways,22/10/2021,30006689,426.25 ,C G Godfrey Ltd,
South Holland District Council,http://statistics.data.gov.uk/id/local-authority/32UF,Housing Landlord Manager,Maintenance of Footpaths and Roadways,22/10/2021,30006695,755.71 ,C G Godfrey Ltd,
South Holland District Council,http://statistics.data.gov.uk/id/local-authority/32UF,Housing Landlord Manager,Maintenance of Footpaths and Roadways,19/10/2021,30006696,"2,985.08 ",C G Godfrey Ltd,
South Holland District Council,http://statistics.data.gov.uk/id/local-authority/32UF,Housing Landlord Manager,Materials and Consumables,12/10/2021,30006181,"4,114.22 ",Gibbs and Dandy,
South Holland District Council,http://statistics.data.gov.uk/id/local-authority/32UF,Housing Landlord Manager,Materials and Consumables,12/10/2021,30006270,"1,536.96 ",Gibbs and Dandy,
South Holland District Council,http://statistics.data.gov.uk/id/local-authority/32UF,Housing Landlord Manager,Materials and Consumables,12/10/2021,30006412,"1,155.45 ",Gibbs and Dandy,
South Holland District Council,http://statistics.data.gov.uk/id/local-authority/32UF,Housing Landlord Manager,Materials and Consumables,26/10/2021,30006636,"1,900.00 ",JML Hardware Ltd,
South Holland District Council,http://statistics.data.gov.uk/id/local-authority/32UF,Housing Landlord Manager,Materials and Consumables,14/10/2021,30006669,"2,437.87 ",Gibbs and Dandy,
South Holland District Council,http://statistics.data.gov.uk/id/local-authority/32UF,Housing Landlord Manager,Materials and Consumables,22/10/2021,30006967,"3,033.53 ",Gibbs and Dandy,
South Holland District Council,http://statistics.data.gov.uk/id/local-authority/32UF,Housing Landlord Manager,Materials and Consumables,28/10/2021,30006989,475.05 ,Howdens Joinery Co. (Acc 1000118018),
South Holland District Council,http://statistics.data.gov.uk/id/local-authority/32UF,Housing Landlord Manager,Professional and Contractors Fees,07/10/2021,30006441,"8,400.00 ",NEC Software Solutions UK Ltd,
South Holland District Council,http://statistics.data.gov.uk/id/local-authority/32UF,Housing Landlord Manager,Professional and Contractors Fees,22/10/2021,30006444,600.00 ,ELAS Occupational Health Ltd,
South Holland District Council,http://statistics.data.gov.uk/id/local-authority/32UF,Housing Landlord Manager,Professional and Contractors Fees,26/10/2021,30006473,"4,455.00 ",NPS Peterborough Ltd,
South Holland District Council,http://statistics.data.gov.uk/id/local-authority/32UF,Housing Landlord Manager,Professional and Contractors Fees,28/10/2021,30006621,665.00 ,Environtec Limited,
South Holland District Council,http://statistics.data.gov.uk/id/local-authority/32UF,Housing Landlord Manager,Professional and Contractors Fees,28/10/2021,30006865,750.00 ,Focus Consultants 2010 LLP,
South Holland District Council,http://statistics.data.gov.uk/id/local-authority/32UF,Housing Landlord Manager,Professional and Contractors Fees,28/10/2021,30006868,900.00 ,Focus Consultants 2010 LLP,
South Holland District Council,http://statistics.data.gov.uk/id/local-authority/32UF,Housing Landlord Manager,Professional and Contractors Fees,28/10/2021,30006869,750.00 ,Focus Consultants 2010 LLP,
South Holland District Council,http://statistics.data.gov.uk/id/local-authority/32UF,Housing Landlord Manager,Professional and Contractors Fees,11/11/2021,30006956,440.50 ,RH Environmental Ltd T/A RHE Global,
South Holland District Council,http://statistics.data.gov.uk/id/local-authority/32UF,Housing Landlord Manager,Professional and Contractors Fees,04/11/2021,30007004,"2,500.00 ",HQN Ltd,
South Holland District Council,http://statistics.data.gov.uk/id/local-authority/32UF,Housing Landlord Manager,Professional Fees,02/11/2021,30007011,"1,750.00 ",NEC Software Solutions UK Ltd,
South Holland District Council,http://statistics.data.gov.uk/id/local-authority/32UF,Housing Landlord Manager,Roof Repairs,07/10/2021,30006377,685.00 ,Kev Forman Roofing,
South Holland District Council,http://statistics.data.gov.uk/id/local-authority/32UF,Housing Landlord Manager,Roof Repairs,07/10/2021,30006378,650.00 ,Kev Forman Roofing,
South Holland District Council,http://statistics.data.gov.uk/id/local-authority/32UF,Housing Landlord Manager,Roof Repairs,14/10/2021,30006750,600.00 ,Kev Forman Roofing,
South Holland District Council,http://statistics.data.gov.uk/id/local-authority/32UF,Housing Landlord Manager,Sewerage Treatment Works,19/10/2021,30006691,"24,718.07 ",C G Godfrey Ltd,
South Holland District Council,http://statistics.data.gov.uk/id/local-authority/32UF,Housing Landlord Manager,Sewerage Treatment Works,14/10/2021,30006693,"24,718.07 ",C G Godfrey Ltd,
South Holland District Council,http://statistics.data.gov.uk/id/local-authority/32UF,Housing Landlord Manager,Sewerage Treatment Works,14/10/2021,30006694,"1,207.50 ",C G Godfrey Ltd,
South Holland District Council,http://statistics.data.gov.uk/id/local-authority/32UF,Housing Landlord Manager,Sewerage Treatment Works,14/10/2021,30006697,"8,294.48 ",C G Godfrey Ltd,
South Holland District Council,http://statistics.data.gov.uk/id/local-authority/32UF,Housing Landlord Manager,Sewerage Treatment Works,19/10/2021,30006698,"1,983.00 ",C G Godfrey Ltd,
South Holland District Council,http://statistics.data.gov.uk/id/local-authority/32UF,Housing Landlord Manager,Sewerage Treatment Works,19/10/2021,30006699,"9,686.00 ",C G Godfrey Ltd,
South Holland District Council,http://statistics.data.gov.uk/id/local-authority/32UF,Housing Landlord Manager,Staff Training Expenses (Non-Payroll),22/10/2021,30006385,"1,750.00 ",Bytesize Training Ltd,
South Holland District Council,http://statistics.data.gov.uk/id/local-authority/32UF,Housing Landlord Manager,Staff Training Expenses (Non-Payroll),28/10/2021,30006612,"1,750.00 ",Bytesize Training Ltd,
South Holland District Council,http://statistics.data.gov.uk/id/local-authority/32UF,Housing Landlord Manager,Staff Training Expenses (Non-Payroll),04/11/2021,30006807,"1,250.00 ",HQN Ltd,
South Holland District Council,http://statistics.data.gov.uk/id/local-authority/32UF,Housing Landlord Manager,Staff Training Expenses (Non-Payroll),04/11/2021,30006884,"1,750.00 ",Bytesize Training Ltd,
South Holland District Council,http://statistics.data.gov.uk/id/local-authority/32UF,Housing Landlord Manager,Staff Training Expenses (Non-Payroll),11/11/2021,30007134,"1,750.00 ",Bytesize Training Ltd,
South Holland District Council,http://statistics.data.gov.uk/id/local-authority/32UF,Housing Landlord Manager,Void Decoration,12/10/2021,30006375,"5,700.00 ",Boors Ltd,
South Holland District Council,http://statistics.data.gov.uk/id/local-authority/32UF,Housing Landlord Manager,Void Repairs,07/10/2021,30006370,272.00 ,M and R Glass and Glazing Ltd,
South Holland District Council,http://statistics.data.gov.uk/id/local-authority/32UF,Housing Landlord Manager,Void Repairs,12/10/2021,30006374,"1,090.00 ",Boors Ltd,
South Holland District Council,http://statistics.data.gov.uk/id/local-authority/32UF,Housing Landlord Manager,Void Repairs,22/10/2021,30006741,467.51 ,andrew Hicks Ltd,
South Holland District Council,http://statistics.data.gov.uk/id/local-authority/32UF,Housing Landlord Manager,Water and Sewerage Charges,26/10/2021,30001796,"2,309.46 ",Anglian Water,
South Holland District Council,http://statistics.data.gov.uk/id/local-authority/32UF,Housing Landlord Manager,Water and Sewerage Charges,26/10/2021,30006810,"2,908.57 ",Anglian Water,
South Holland District Council,http://statistics.data.gov.uk/id/local-authority/32UF,Housing Landlord Manager,Works to Buildings (Main Contractor),28/10/2021,30006338,"1,862.13 ",Hodgson Sayers Ltd,
South Holland District Council,http://statistics.data.gov.uk/id/local-authority/32UF,Housing Landlord Manager,Works to Buildings (Main Contractor),05/10/2021,30006436,"5,655.11 ",M P L Home Improvements,
South Holland District Council,http://statistics.data.gov.uk/id/local-authority/32UF,Housing Landlord Manager,Works to Buildings (Main Contractor),28/10/2021,30006521,"2,195.86 ",Hodgson Sayers Ltd,
South Holland District Council,http://statistics.data.gov.uk/id/local-authority/32UF,Housing Landlord Manager,Works to Buildings (Main Contractor),12/10/2021,30006581,"5,853.11 ",JPG Builders,
South Holland District Council,http://statistics.data.gov.uk/id/local-authority/32UF,Housing Landlord Manager,Works to Buildings (Main Contractor),12/10/2021,30006584,"18,081.18 ",Ron Gale and Sons Ltd,
South Holland District Council,http://statistics.data.gov.uk/id/local-authority/32UF,Housing Landlord Manager,Works to Buildings (Main Contractor),22/10/2021,30006662,"5,648.00 ",Obam Domestic Lift Services Ltd,
South Holland District Council,http://statistics.data.gov.uk/id/local-authority/32UF,Housing Landlord Manager,Works to Buildings (Main Contractor),12/10/2021,30006683,"25,009.13 ",D Brown Building Contractors Ltd,
South Holland District Council,http://statistics.data.gov.uk/id/local-authority/32UF,Housing Landlord Manager,Works to Buildings (Main Contractor),12/10/2021,30006684,"78,546.11 ",D Brown Building Contractors Ltd,
South Holland District Council,http://statistics.data.gov.uk/id/local-authority/32UF,Housing Landlord Manager,Works to Buildings (Main Contractor),19/10/2021,30006690,"10,311.80 ",C G Godfrey Ltd,
South Holland District Council,http://statistics.data.gov.uk/id/local-authority/32UF,Housing Landlord Manager,Works to Buildings (Main Contractor),19/10/2021,30006692,"12,462.52 ",C G Godfrey Ltd,
South Holland District Council,http://statistics.data.gov.uk/id/local-authority/32UF,Housing Landlord Manager,Works to Buildings (Main Contractor),02/11/2021,30006935,886.00 ,Stuart Taplin Plumbing and Build Maint,
South Holland District Council,http://statistics.data.gov.uk/id/local-authority/32UF,Housing Landlord Manager,Works to Buildings (Main Contractor),02/11/2021,30006938,"5,940.25 ",A Coupland (Surfacing) Ltd,
South Holland District Council,http://statistics.data.gov.uk/id/local-authority/32UF,Housing Landlord Manager,Works to Buildings (Main Contractor),26/10/2021,30007012,590.00 ,Castlebuild Scaffolding Ltd,
South Holland District Council,http://statistics.data.gov.uk/id/local-authority/32UF,Housing Landlord Manager,Works to Buildings (Main Contractor),28/10/2021,30007257,"10,530.00 ",D Brown Building Contractors Ltd,
South Holland District Council,http://statistics.data.gov.uk/id/local-authority/32UF,Housing Landlord Manager,Works to Buildings (Main Contractor),28/10/2021,30007268,"7,995.00 ",D Brown Building Contractors Ltd,
South Holland District Council,http://statistics.data.gov.uk/id/local-authority/32UF,Housing Landlord Manager,Works to Buildings (Main Contractor),28/10/2021,30007269,"45,108.27 ",D Brown Building Contractors Ltd,
South Holland District Council,http://statistics.data.gov.uk/id/local-authority/32UF,Housing Landlord Manager,Works to Buildings (Main Contractor),28/10/2021,30007270,"69,728.15 ",D Brown Building Contractors Ltd,
South Holland District Council,http://statistics.data.gov.uk/id/local-authority/32UF,Housing Landlord Manager,Works to Buildings (Main Contractor),28/10/2021,30007279,"6,142.72 ",M P L Home Improvements,
South Holland District Council,http://statistics.data.gov.uk/id/local-authority/32UF,Housing Landlord Manager,Works to Buildings (Main Contractor),09/11/2021,30007281,"12,079.53 ",Stuart Taplin Plumbing and Build Maint,
South Holland District Council,http://statistics.data.gov.uk/id/local-authority/32UF,Housing Landlord Manager,Works to Buildings (Main Contractor),02/11/2021,30007283,"5,333.11 ",NDJ Ltd T A Belton Construction,
South Holland District Council,http://statistics.data.gov.uk/id/local-authority/32UF,HR,Apprenticeship Levy,12/10/2021,30006617,"1,905.00 ",HM Revenue and Customs,
South Holland District Council,http://statistics.data.gov.uk/id/local-authority/32UF,HR,Other Income,22/10/2021,30006943,-27.71 ,Unison,
South Holland District Council,http://statistics.data.gov.uk/id/local-authority/32UF,HR,Staff Training Expenses (Non-Payroll),14/10/2021,30006190,815.42 ,Pristine Condition International Ltd,
South Holland District Council,http://statistics.data.gov.uk/id/local-authority/32UF,HR,Staff Training Expenses (Non-Payroll),26/10/2021,30007053,"1,950.00 ",NTP Services,
South Holland District Council,http://statistics.data.gov.uk/id/local-authority/32UF,ICT and Customer Services,Computer Hardware Purchase,07/10/2021,30005607,553.89 ,Banner Group T A Spectrum,
South Holland District Council,http://statistics.data.gov.uk/id/local-authority/32UF,ICT and Customer Services,Computer Hardware Purchase,28/10/2021,30006468,638.00 ,Onesource It Ltd,
South Holland District Council,http://statistics.data.gov.uk/id/local-authority/32UF,ICT and Customer Services,Computer Hardware Purchase,22/10/2021,30006471,555.03 ,CCS Media Limited,
South Holland District Council,http://statistics.data.gov.uk/id/local-authority/32UF,ICT and Customer Services,Computer Software Licence Costs,28/10/2021,30007040,"1,863.04 ",Infrasys Ltd,
South Holland District Council,http://statistics.data.gov.uk/id/local-authority/32UF,ICT and Customer Services,External Printing and Design Costs,07/10/2021,30006559,"7,391.27 ",Public Sector Partnership Services Ltd,
South Holland District Council,http://statistics.data.gov.uk/id/local-authority/32UF,ICT and Customer Services,Professional and Contractors Fees,11/11/2021,30006962,"4,489.60 ",Covenco Recovery Services Ltd,
South Holland District Council,http://statistics.data.gov.uk/id/local-authority/32UF,ICT and Customer Services,Telephones,14/10/2021,30006749,"1,972.59 ",Daisy Communications Ltd,
South Holland District Council,http://statistics.data.gov.uk/id/local-authority/32UF,ICT and Customer Services,Telephones,22/10/2021,30006860,"2,523.71 ",Vodafone Ltd Corporate,
South Holland District Council,http://statistics.data.gov.uk/id/local-authority/32UF,ICT and Customer Services,Telephones,22/10/2021,30006907,"2,212.18 ",British Telecom Corporate Plc,
South Holland District Council,http://statistics.data.gov.uk/id/local-authority/32UF,ICT and Customer Services,Telephones,28/10/2021,30006908,"1,992.17 ",Daisy Communications Ltd,
South Holland District Council,http://statistics.data.gov.uk/id/local-authority/32UF,ICT and Customer Services,Telephones,02/11/2021,30007085,617.83 ,Vodafone Ltd Corporate,
South Holland District Council,http://statistics.data.gov.uk/id/local-authority/32UF,Planning,Agency - Vacant Post Cover,28/10/2021,30006566,"1,482.00 ",Vivid Resourcing,
South Holland District Council,http://statistics.data.gov.uk/id/local-authority/32UF,Planning,Agency - Vacant Post Cover,04/11/2021,30006871,"1,462.50 ",Vivid Resourcing,
South Holland District Council,http://statistics.data.gov.uk/id/local-authority/32UF,Planning,Agency - Vacant Post Cover,28/10/2021,30006872,"1,289.40 ",Vivid Resourcing,
South Holland District Council,http://statistics.data.gov.uk/id/local-authority/32UF,Planning,Agency - Vacant Post Cover,11/11/2021,30007258,"1,488.60 ",Vivid Resourcing,
South Holland District Council,http://statistics.data.gov.uk/id/local-authority/32UF,Planning,Agency - Vacant Post Cover,18/11/2021,30007290,"1,423.50 ",Vivid Resourcing,
South Holland District Council,http://statistics.data.gov.uk/id/local-authority/32UF,Public Protection,Fuel and Oil,12/10/2021,30006513,33.95 ,C H Jones Ltd,
South Holland District Council,http://statistics.data.gov.uk/id/local-authority/32UF,Public Protection,Professional and Contractors Fees,28/10/2021,30006509,"3,027.00 ",Martin Cranfield Associates Ltd,
South Holland District Council,http://statistics.data.gov.uk/id/local-authority/32UF,Public Protection,Professional and Contractors Fees,11/11/2021,30006956,440.50 ,RH Environmental Ltd T/A RHE Global,
South Holland District Council,http://statistics.data.gov.uk/id/local-authority/32UF,SHDC Revenues & Benefits,Other Income,02/11/2021,30006959,638.98 ,Jacobs Certificated Bailiffs,
South Holland District Council,http://statistics.data.gov.uk/id/local-authority/32UF,SHDC Revenues & Benefits,Professional and Contractors Fees,26/10/2021,30006386,"3,000.00 ",Lincolnshire County Council,
South Holland District Council,http://statistics.data.gov.uk/id/local-authority/32UF,South Holland Balance Sheet,CIS Tax,19/10/2021,30006866,"3,331.57 ",HM Revenue and Customs,
South Holland District Council,http://statistics.data.gov.uk/id/local-authority/32UF,Spalding Specials,Grants and Contributions to Outside Bodies - No Service Received,28/10/2021,30006999,"4,250.00 ",South Holland Parish Voluntary Car Schem,
South Holland District Council,http://statistics.data.gov.uk/id/local-authority/32UF,Spalding Specials,Rent Payments,19/10/2021,30006721,950.00 ,Spalding Rectory Feoffees,
South Holland District Council,http://statistics.data.gov.uk/id/local-authority/32UF,Town Centre Improvement Plan,Professional and Contractors Fees,12/10/2021,30006472,832.32 ,Mr Gavin Thomas,
